[Event "*** Titled Tuesday Blitz"]
[Site "Chess.com"]
[Date "2020.10.27"]
[Round "3"]
[White "pastouche06"]
[Black "northridgehawk"]
[Result "1-0"]
[WhiteElo "2487"]
[BlackElo "2249"]
[TimeControl "180+1"]
[EndTime "10:28:46 PDT"]
[Termination "pastouche06 won by resignation"]

1. d4 {[%clk 0:03:00.9]} 1... Nf6 {[%clk 0:02:58.8]} 2. c4 {[%clk 0:03:00.1]}
2... g6 {[%clk 0:02:58.9]} 3. f3 {[%clk 0:03:00.2]} 3... d5 {[%clk 0:02:58]} 4.
cxd5 {[%clk 0:03:01.1]} 4... Nxd5 {[%clk 0:02:58.4]} 5. e4 {[%clk 0:03:01.7]}
5... Nb6 {[%clk 0:02:58.7]} 6. Nc3 {[%clk 0:03:02.3]} 6... Bg7 {[%clk
0:02:58.8]} 7. Be3 {[%clk 0:03:02.9]} 7... O-O {[%clk 0:02:57.9]} 8. Qd2 {[%clk
0:03:03.1]} 8... Nc6 {[%clk 0:02:58]} 9. O-O-O {[%clk 0:03:03.4]} 9... f5 {[%clk
0:02:56.6]} 10. e5 {[%clk 0:03:01.4]} 10... Nb4 {[%clk 0:02:55.5]} 11. h4 {[%clk
0:02:57.1]} 11... Be6 {[%clk 0:02:51.9]} 12. Kb1 {[%clk 0:02:57.3]} 12... a5
{[%clk 0:02:41.2]} 13. Nh3 {[%clk 0:02:54.6]} 13... c6 {[%clk 0:02:31]} 14. Bh6
{[%clk 0:02:35.3]} 14... N6d5 {[%clk 0:02:23.5]} 15. Bxg7 {[%clk 0:02:23.5]}
15... Kxg7 {[%clk 0:02:22.8]} 16. Nf4 {[%clk 0:01:54.9]} 16... Nxc3+ {[%clk
0:02:16.3]} 17. bxc3 {[%clk 0:01:55.8]} 17... Bxa2+ {[%clk 0:02:15.4]} 18. Ka1
{[%clk 0:01:56.1]} 18... Bb3 {[%clk 0:02:14]} 19. Rb1 {[%clk 0:01:52.4]} 19...
Nc2+ {[%clk 0:02:13.1]} 20. Kb2 {[%clk 0:01:48.6]} 20... a4 {[%clk 0:02:13.3]}
21. h5 {[%clk 0:01:40.6]} 21... g5 {[%clk 0:01:57]} 22. Nd3 {[%clk 0:01:27.9]}
22... h6 {[%clk 0:01:53.8]} 23. Nc5 {[%clk 0:01:28]} 23... Qd5 {[%clk
0:01:48.7]} 24. c4 {[%clk 0:01:13.6]} 24... Qd8 {[%clk 0:01:28.5]} 25. Ne6+
{[%clk 0:01:12.2]} 25... Kf7 {[%clk 0:01:24.7]} 26. Nxd8+ {[%clk 0:01:13.1]}
26... Rfxd8 {[%clk 0:01:24.9]} 27. d5 {[%clk 0:00:57.4]} 27... cxd5 {[%clk
0:01:24.6]} 28. cxd5 {[%clk 0:00:57.1]} 28... Rac8 {[%clk 0:01:13.1]} 29. d6
{[%clk 0:00:54.6]} 29... Rc6 {[%clk 0:00:54.7]} 30. e6+ {[%clk 0:00:40.8]} 30...
Bxe6 {[%clk 0:00:51.2]} 31. Qxc2 {[%clk 0:00:36.9]} 31... a3+ {[%clk 0:00:51.1]}
32. Kc1 {[%clk 0:00:35.2]} 32... a2 {[%clk 0:00:42.3]} 33. Ra1 {[%clk
0:00:32.5]} 33... Rdxd6 {[%clk 0:00:40.9]} 34. Be2 {[%clk 0:00:27.2]} 34... Bb3
{[%clk 0:00:38.8]} 35. Qxc6 {[%clk 0:00:26.3]} 35... Rxc6+ {[%clk 0:00:36.9]}
36. Kb2 {[%clk 0:00:26.9]} 36... Be6 {[%clk 0:00:32.4]} 37. Rhc1 {[%clk
0:00:25.5]} 37... Rb6+ {[%clk 0:00:31.6]} 38. Kc3 {[%clk 0:00:26]} 38... Rc6+
{[%clk 0:00:30.1]} 39. Kb4 {[%clk 0:00:24.9]} 39... Rb6+ {[%clk 0:00:29]} 40.
Ka5 {[%clk 0:00:24.2]} 40... Rb2 {[%clk 0:00:28.9]} 41. Bc4 {[%clk 0:00:24]}
41... Rxg2 {[%clk 0:00:18.4]} 42. Bxe6+ {[%clk 0:00:20]} 42... Kxe6 {[%clk
0:00:19.3]} 43. Rc7 {[%clk 0:00:19.1]} 43... Rf2 {[%clk 0:00:19.6]} 44. Rxb7
{[%clk 0:00:19]} 44... g4 {[%clk 0:00:20]} 45. fxg4 {[%clk 0:00:17.4]} 45...
fxg4 {[%clk 0:00:20.9]} 46. Rb6+ {[%clk 0:00:17.3]} 46... Kf5 {[%clk 0:00:21.3]}
47. Rxh6 {[%clk 0:00:17.6]} 47... g3 {[%clk 0:00:20.7]} 48. Rg6 {[%clk
0:00:17.8]} 48... g2 {[%clk 0:00:21]} 49. Rg8 {[%clk 0:00:10.3]} 49... Rf1
{[%clk 0:00:20.6]} 50. Rxf1+ {[%clk 0:00:09.3]} 50... gxf1=Q {[%clk 0:00:17.1]}
51. Rf8+ {[%clk 0:00:09.6]} 51... Kg5 {[%clk 0:00:17.5]} 52. Rxf1 {[%clk
0:00:10.5]} 52... Kxh5 {[%clk 0:00:17.7]} 53. Kb4 {[%clk 0:00:09.6]} 53... e5
{[%clk 0:00:16.7]} 54. Kc3 {[%clk 0:00:09.8]} 54... Kg4 {[%clk 0:00:17.2]} 55.
Kd2 {[%clk 0:00:09]} 55... e4 {[%clk 0:00:16.7]} 56. Ke3 {[%clk 0:00:08.9]}
56... a1=Q {[%clk 0:00:16.3]} 57. Rxa1 {[%clk 0:00:09.8]} 1-0

[Event "*** Titled Tuesday Blitz"]
[Site "Chess.com"]
[Date "2020.10.27"]
[Round "3"]
[White "Pultis"]
[Black "Sanan_Sjugirov"]
[Result "0-1"]
[WhiteElo "2711"]
[BlackElo "2936"]
[TimeControl "180+1"]
[EndTime "10:28:47 PDT"]
[Termination "Sanan_Sjugirov won by resignation"]

1. d4 {[%clk 0:03:00.9]} 1... Nf6 {[%clk 0:02:59.3]} 2. Nf3 {[%clk 0:02:59.6]}
2... e6 {[%clk 0:02:55.4]} 3. Nbd2 {[%clk 0:02:59.4]} 3... d5 {[%clk 0:02:52.8]}
4. e3 {[%clk 0:02:59.1]} 4... b6 {[%clk 0:02:39.4]} 5. b3 {[%clk 0:02:57.8]}
5... Bb7 {[%clk 0:02:39.3]} 6. Bb2 {[%clk 0:02:57.9]} 6... Bd6 {[%clk
0:02:38.5]} 7. Bd3 {[%clk 0:02:57.7]} 7... O-O {[%clk 0:02:37.7]} 8. Qe2 {[%clk
0:02:56.2]} 8... Ne4 {[%clk 0:02:35.7]} 9. a3 {[%clk 0:02:50.4]} 9... Nd7 {[%clk
0:02:33.9]} 10. O-O {[%clk 0:02:49.8]} 10... f5 {[%clk 0:02:24.2]} 11. c4 {[%clk
0:02:47.4]} 11... Qe7 {[%clk 0:02:21.1]} 12. b4 {[%clk 0:02:41.3]} 12... Nxd2
{[%clk 0:02:12.1]} 13. Nxd2 {[%clk 0:02:39.9]} 13... dxc4 {[%clk 0:02:10.7]} 14.
Nxc4 {[%clk 0:02:36.8]} 14... Nf6 {[%clk 0:01:55]} 15. f3 {[%clk 0:02:24.7]}
15... Kh8 {[%clk 0:01:44]} 16. Nxd6 {[%clk 0:02:12.7]} 16... cxd6 {[%clk
0:01:42.9]} 17. e4 {[%clk 0:02:11.2]} 17... fxe4 {[%clk 0:01:39.9]} 18. fxe4
{[%clk 0:02:10.8]} 18... d5 {[%clk 0:01:25.7]} 19. e5 {[%clk 0:01:33.9]} 19...
Ne4 {[%clk 0:01:24.7]} 20. Rxf8+ {[%clk 0:01:19.9]} 20... Rxf8 {[%clk
0:01:24.1]} 21. Rf1 {[%clk 0:01:20.4]} 21... Kg8 {[%clk 0:01:11.1]} 22. Qe3
{[%clk 0:01:14.4]} 22... Rxf1+ {[%clk 0:01:04.4]} 23. Bxf1 {[%clk 0:01:08.9]}
23... Bc6 {[%clk 0:00:50.7]} 24. b5 {[%clk 0:01:04.3]} 24... Be8 {[%clk
0:00:49.4]} 25. a4 {[%clk 0:01:01.8]} 25... Qb4 {[%clk 0:00:41.4]} 26. Ba3
{[%clk 0:00:59]} 26... Qxa4 {[%clk 0:00:39.6]} 27. Qd3 {[%clk 0:00:27.6]} 27...
h6 {[%clk 0:00:33.8]} 28. h3 {[%clk 0:00:26.6]} 28... Bg6 {[%clk 0:00:22.8]} 29.
Kh2 {[%clk 0:00:25]} 29... Kh7 {[%clk 0:00:21.8]} 30. Qe3 {[%clk 0:00:24.4]}
30... Qd1 {[%clk 0:00:16.6]} 31. Be2 {[%clk 0:00:16]} 31... Qe1 {[%clk
0:00:15.7]} 32. Bc1 {[%clk 0:00:12.6]} 32... Nf2 {[%clk 0:00:13.6]} 33. Bf3
{[%clk 0:00:06.7]} 33... Qh1+ {[%clk 0:00:13.5]} 34. Kg3 {[%clk 0:00:07.2]}
34... Ne4+ {[%clk 0:00:14.1]} 35. Kh4 {[%clk 0:00:02.7]} 35... Qf1 {[%clk
0:00:13]} 36. Bd2 {[%clk 0:00:01.6]} 36... Ng5 {[%clk 0:00:11.2]} 37. Kg3 {[%clk
0:00:01.1]} 37... Be4 {[%clk 0:00:07.7]} 38. Kh2 {[%clk 0:00:01.5]} 38... Bxf3
{[%clk 0:00:06.9]} 39. gxf3 {[%clk 0:00:01.7]} 39... Nxf3+ {[%clk 0:00:07.8]}
40. Kg3 {[%clk 0:00:02.2]} 40... Ng5 {[%clk 0:00:08]} 41. h4 {[%clk 0:00:01.4]}
41... Qh3+ {[%clk 0:00:07.7]} 42. Kf2 {[%clk 0:00:01.5]} 42... Qxh4+ {[%clk
0:00:08.1]} 43. Ke2 {[%clk 0:00:01.5]} 43... Qe4 {[%clk 0:00:07.5]} 44. Kd1
{[%clk 0:00:01.7]} 44... Qxe3 {[%clk 0:00:07.4]} 45. Bxe3 {[%clk 0:00:02.6]}
45... Ne4 {[%clk 0:00:08.2]} 46. Kc2 {[%clk 0:00:03.1]} 46... g5 {[%clk
0:00:08.6]} 47. Bd2 {[%clk 0:00:02.7]} 47... Kg6 {[%clk 0:00:08.8]} 48. Bb4
{[%clk 0:00:03.6]} 48... g4 {[%clk 0:00:08.7]} 49. Bd6 {[%clk 0:00:03.7]} 49...
g3 {[%clk 0:00:08.8]} 50. Bb8 {[%clk 0:00:04.6]} 50... g2 {[%clk 0:00:09.2]} 51.
Bxa7 {[%clk 0:00:05.5]} 51... g1=Q {[%clk 0:00:09.7]} 0-1

[Event "*** Titled Tuesday Blitz"]
[Site "Chess.com"]
[Date "2020.10.27"]
[Round "3"]
[White "Aleksey_Sorokin"]
[Black "Legendinunknown"]
[Result "1-0"]
[WhiteElo "2841"]
[BlackElo "2649"]
[TimeControl "180+1"]
[EndTime "10:28:47 PDT"]
[Termination "Aleksey_Sorokin won by resignation"]

1. d4 {[%clk 0:03:00.9]} 1... Nf6 {[%clk 0:02:58.4]} 2. c4 {[%clk 0:03:01.1]}
2... e5 {[%clk 0:02:58.3]} 3. dxe5 {[%clk 0:03:00.7]} 3... Ng4 {[%clk
0:02:58.3]} 4. Bf4 {[%clk 0:03:00.6]} 4... Nc6 {[%clk 0:02:56.5]} 5. Nf3 {[%clk
0:03:00.5]} 5... Bb4+ {[%clk 0:02:54.8]} 6. Nbd2 {[%clk 0:02:59.4]} 6... Qe7
{[%clk 0:02:54.2]} 7. e3 {[%clk 0:02:59.6]} 7... Ngxe5 {[%clk 0:02:53.1]} 8.
Nxe5 {[%clk 0:03:00.5]} 8... Nxe5 {[%clk 0:02:51]} 9. Be2 {[%clk 0:03:00.6]}
9... O-O {[%clk 0:02:49.8]} 10. O-O {[%clk 0:03:00.7]} 10... b6 {[%clk
0:02:48.1]} 11. Nb3 {[%clk 0:02:55.9]} 11... Bd6 {[%clk 0:02:43]} 12. Nd4 {[%clk
0:02:54.4]} 12... Bb7 {[%clk 0:01:56.8]} 13. Nf5 {[%clk 0:02:51.9]} 13... Qf6
{[%clk 0:01:56.5]} 14. Nxd6 {[%clk 0:02:51.7]} 14... cxd6 {[%clk 0:01:57]} 15.
Qd4 {[%clk 0:02:47.5]} 15... Rfe8 {[%clk 0:01:50.8]} 16. Rad1 {[%clk 0:02:44.7]}
16... Qg6 {[%clk 0:01:50.4]} 17. f3 {[%clk 0:02:37.4]} 17... Re6 {[%clk
0:01:49.8]} 18. e4 {[%clk 0:02:33.3]} 18... Bc6 {[%clk 0:01:40.9]} 19. Bg3
{[%clk 0:02:33]} 19... f5 {[%clk 0:01:36.5]} 20. Qd2 {[%clk 0:01:55.7]} 20...
Rf8 {[%clk 0:01:03.8]} 21. Bxe5 {[%clk 0:01:53.3]} 21... dxe5 {[%clk 0:01:02.2]}
22. exf5 {[%clk 0:01:53.3]} 22... Qxf5 {[%clk 0:00:58.4]} 23. Bd3 {[%clk
0:01:50.2]} 23... Qf4 {[%clk 0:00:53]} 24. Be4 {[%clk 0:01:43.2]} 24... Qxd2
{[%clk 0:00:39.6]} 25. Rxd2 {[%clk 0:01:42.5]} 25... Bxe4 {[%clk 0:00:40]} 26.
fxe4 {[%clk 0:01:43.4]} 26... Rxf1+ {[%clk 0:00:40.5]} 27. Kxf1 {[%clk
0:01:42.8]} 27... d6 {[%clk 0:00:41.1]} 28. Ke2 {[%clk 0:01:38.7]} 28... Kf8
{[%clk 0:00:40.4]} 29. Rd3 {[%clk 0:01:37.9]} 29... Ke7 {[%clk 0:00:40.2]} 30.
Ra3 {[%clk 0:01:37.6]} 30... a5 {[%clk 0:00:37.6]} 31. Rb3 {[%clk 0:01:37.6]}
31... Rh6 {[%clk 0:00:32.2]} 32. h3 {[%clk 0:01:22.9]} 32... Rg6 {[%clk
0:00:32.1]} 33. g4 {[%clk 0:01:08.3]} 33... h5 {[%clk 0:00:30.8]} 34. gxh5
{[%clk 0:01:04.5]} 34... Rg2+ {[%clk 0:00:30.3]} 35. Kf3 {[%clk 0:00:58.7]}
35... Rc2 {[%clk 0:00:29.9]} 36. Rxb6 {[%clk 0:00:58.1]} 36... Rxc4 {[%clk
0:00:29.2]} 37. b3 {[%clk 0:00:52.8]} 37... Rc2 {[%clk 0:00:19.3]} 38. a4 {[%clk
0:00:51.8]} 38... Rb2 {[%clk 0:00:19.4]} 39. Kg4 {[%clk 0:00:47.2]} 39... Ke6
{[%clk 0:00:19.3]} 40. Rb7 {[%clk 0:00:36.8]} 40... Kf6 {[%clk 0:00:18.2]} 41.
Rb6 {[%clk 0:00:33.3]} 41... Rd2 {[%clk 0:00:18]} 42. Rb5 {[%clk 0:00:27.1]}
42... Rd4 {[%clk 0:00:17.7]} 43. Kf3 {[%clk 0:00:20.2]} 43... Kg5 {[%clk
0:00:17.4]} 44. Ke3 {[%clk 0:00:19.9]} 44... Kxh5 {[%clk 0:00:15.7]} 45. Rxa5
{[%clk 0:00:20.1]} 45... Rd1 {[%clk 0:00:14.6]} 46. Rd5 {[%clk 0:00:20.1]} 46...
Rb1 {[%clk 0:00:14.6]} 47. Rd3 {[%clk 0:00:19.6]} 47... Kh4 {[%clk 0:00:14.9]}
48. a5 {[%clk 0:00:19.7]} 48... g5 {[%clk 0:00:14.6]} 49. a6 {[%clk 0:00:19.5]}
49... g4 {[%clk 0:00:14.8]} 50. hxg4 {[%clk 0:00:19.4]} 50... Kxg4 {[%clk
0:00:15.7]} 51. Kd2 {[%clk 0:00:19]} 51... Kf4 {[%clk 0:00:14.2]} 52. Kc2 {[%clk
0:00:18.7]} 52... Ra1 {[%clk 0:00:14.5]} 53. Rxd6 {[%clk 0:00:18.7]} 53... Kxe4
{[%clk 0:00:15]} 54. b4 {[%clk 0:00:19.1]} 54... Kf3 {[%clk 0:00:15.3]} 55. Kb2
{[%clk 0:00:18.9]} 55... e4 {[%clk 0:00:16.2]} 56. Kxa1 {[%clk 0:00:18.8]} 1-0

[Event "*** Titled Tuesday Blitz"]
[Site "Chess.com"]
[Date "2020.10.27"]
[Round "3"]
[White "BikingBrian"]
[Black "WuinaterJr"]
[Result "1/2-1/2"]
[WhiteElo "2270"]
[BlackElo "2512"]
[TimeControl "180+1"]
[EndTime "10:28:48 PDT"]
[Termination "Game drawn - insufficient material"]

1. d4 {[%clk 0:03:00.9]} 1... Nf6 {[%clk 0:02:59.4]} 2. Bg5 {[%clk 0:03:00.7]}
2... e6 {[%clk 0:02:57]} 3. Nd2 {[%clk 0:03:00.2]} 3... h6 {[%clk 0:02:56.6]} 4.
Bh4 {[%clk 0:02:59.9]} 4... c5 {[%clk 0:02:56.6]} 5. e3 {[%clk 0:03:00.2]} 5...
Nc6 {[%clk 0:02:56.3]} 6. c3 {[%clk 0:02:59.7]} 6... d5 {[%clk 0:02:56.2]} 7.
Bd3 {[%clk 0:02:57.9]} 7... b6 {[%clk 0:02:56]} 8. f4 {[%clk 0:02:57.8]} 8...
Be7 {[%clk 0:02:55.4]} 9. Ngf3 {[%clk 0:02:57.5]} 9... a5 {[%clk 0:02:55.7]} 10.
Ne5 {[%clk 0:02:55.8]} 10... Nxe5 {[%clk 0:02:54.4]} 11. fxe5 {[%clk 0:02:55.9]}
11... Nd7 {[%clk 0:02:54.8]} 12. Bxe7 {[%clk 0:02:53.6]} 12... Qxe7 {[%clk
0:02:55]} 13. Qg4 {[%clk 0:02:51.9]} 13... O-O {[%clk 0:02:38.8]} 14. O-O {[%clk
0:02:50.6]} 14... f5 {[%clk 0:02:32]} 15. exf6 {[%clk 0:02:40.2]} 15... Rxf6
{[%clk 0:02:14.7]} 16. Rxf6 {[%clk 0:02:37]} 16... Nxf6 {[%clk 0:02:14.4]} 17.
Qg6 {[%clk 0:02:32.8]} 17... Qf7 {[%clk 0:02:14.5]} 18. Qxf7+ {[%clk 0:02:25.5]}
18... Kxf7 {[%clk 0:02:14.2]} 19. Rf1 {[%clk 0:02:26.4]} 19... Ke7 {[%clk
0:02:12.6]} 20. e4 {[%clk 0:02:26.6]} 20... Ba6 {[%clk 0:02:07.6]} 21. Bxa6
{[%clk 0:02:23.2]} 21... Rxa6 {[%clk 0:02:07.2]} 22. e5 {[%clk 0:02:21.6]} 22...
Nd7 {[%clk 0:02:07]} 23. Nf3 {[%clk 0:02:18.4]} 23... Ra8 {[%clk 0:02:03.3]} 24.
Nh4 {[%clk 0:02:18.5]} 24... cxd4 {[%clk 0:01:57.2]} 25. Ng6+ {[%clk 0:02:15.5]}
25... Ke8 {[%clk 0:01:57.2]} 26. cxd4 {[%clk 0:02:11.5]} 26... Rc8 {[%clk
0:01:57.3]} 27. Nh8 {[%clk 0:01:54.1]} 27... Rc2 {[%clk 0:01:50.2]} 28. Nf7
{[%clk 0:01:53.9]} 28... Rxb2 {[%clk 0:01:47]} 29. Nd6+ {[%clk 0:01:54]} 29...
Kd8 {[%clk 0:01:47.2]} 30. Rc1 {[%clk 0:01:22.1]} 30... Nxe5 {[%clk 0:01:11.9]}
31. dxe5 {[%clk 0:01:16.7]} 31... Rxa2 {[%clk 0:01:12.2]} 32. Rc8+ {[%clk
0:01:08.8]} 32... Kd7 {[%clk 0:01:11.4]} 33. Rb8 {[%clk 0:01:08.9]} 33... Rb2
{[%clk 0:01:09.6]} 34. Rb7+ {[%clk 0:01:05]} 34... Kc6 {[%clk 0:01:09.4]} 35.
Rxg7 {[%clk 0:01:04.8]} 35... a4 {[%clk 0:01:09.5]} 36. Ra7 {[%clk 0:01:04]}
36... b5 {[%clk 0:01:09.6]} 37. Ra6+ {[%clk 0:00:50.8]} 37... Kc5 {[%clk
0:01:07.4]} 38. Nb7+ {[%clk 0:00:50.9]} 38... Kd4 {[%clk 0:01:06.7]} 39. Rxe6
{[%clk 0:00:49.4]} 39... a3 {[%clk 0:01:06.8]} 40. Ra6 {[%clk 0:00:47.5]} 40...
a2 {[%clk 0:01:03.1]} 41. e6 {[%clk 0:00:42.4]} 41... Re2 {[%clk 0:00:40.9]} 42.
Kf1 {[%clk 0:00:40.2]} 42... Rxe6 {[%clk 0:00:38.7]} 43. Rxa2 {[%clk 0:00:38.8]}
43... b4 {[%clk 0:00:38.2]} 44. Rd2+ {[%clk 0:00:35.3]} 44... Kc3 {[%clk
0:00:30]} 45. Rxd5 {[%clk 0:00:34]} 45... b3 {[%clk 0:00:30.5]} 46. Rb5 {[%clk
0:00:31.1]} 46... b2 {[%clk 0:00:28]} 47. Nc5 {[%clk 0:00:29.8]} 47... Rf6+
{[%clk 0:00:19.4]} 48. Ke2 {[%clk 0:00:29.6]} 48... Kc2 {[%clk 0:00:17.2]} 49.
Ne4 {[%clk 0:00:20.7]} 49... Re6 {[%clk 0:00:16.6]} 50. Kf3 {[%clk 0:00:19]}
50... b1=Q {[%clk 0:00:16.4]} 51. Rxb1 {[%clk 0:00:18.6]} 51... Kxb1 {[%clk
0:00:17.3]} 52. g4 {[%clk 0:00:18.3]} 52... Kc2 {[%clk 0:00:16.6]} 53. g5 {[%clk
0:00:18.5]} 53... hxg5 {[%clk 0:00:15.7]} 54. Nxg5 {[%clk 0:00:18.3]} 54... Rf6+
{[%clk 0:00:15.5]} 55. Kg4 {[%clk 0:00:18.6]} 55... Re6 {[%clk 0:00:16.4]} 56.
h4 {[%clk 0:00:18.7]} 56... Rh6 {[%clk 0:00:15.1]} 57. h5 {[%clk 0:00:17.5]}
57... Kd3 {[%clk 0:00:14.9]} 58. Nf7 {[%clk 0:00:17.8]} 58... Rh7 {[%clk
0:00:14.3]} 59. Ne5+ {[%clk 0:00:18]} 59... Ke4 {[%clk 0:00:14.2]} 60. Ng6
{[%clk 0:00:18.4]} 60... Kd5 {[%clk 0:00:12.2]} 61. Kg5 {[%clk 0:00:18.3]} 61...
Kd6 {[%clk 0:00:11.5]} 62. h6 {[%clk 0:00:18.6]} 62... Rxh6 {[%clk 0:00:08]} 63.
Kxh6 {[%clk 0:00:18.6]} 1/2-1/2

[Event "*** Titled Tuesday Blitz"]
[Site "Chess.com"]
[Date "2020.10.27"]
[Round "3"]
[White "totoro9"]
[Black "suyu28"]
[Result "0-1"]
[WhiteElo "2259"]
[BlackElo "2611"]
[TimeControl "180+1"]
[EndTime "10:28:54 PDT"]
[Termination "suyu28 won by checkmate"]

1. e4 {[%clk 0:00:52.1]} 1... c5 {[%clk 0:02:57.5]} 2. Nf3 {[%clk 0:00:52.1]}
2... d6 {[%clk 0:02:58.1]} 3. d4 {[%clk 0:00:52.8]} 3... cxd4 {[%clk 0:02:58]}
4. Nxd4 {[%clk 0:00:53.2]} 4... Nf6 {[%clk 0:02:58.7]} 5. Nc3 {[%clk 0:00:54.1]}
5... a6 {[%clk 0:02:59.2]} 6. Nb3 {[%clk 0:00:54.8]} 6... g6 {[%clk 0:02:49.6]}
7. Be3 {[%clk 0:00:43.5]} 7... Bg7 {[%clk 0:02:49.3]} 8. f3 {[%clk 0:00:42]}
8... O-O {[%clk 0:02:49.2]} 9. Qd2 {[%clk 0:00:42.3]} 9... b5 {[%clk 0:02:49.1]}
10. Bh6 {[%clk 0:00:42.3]} 10... Nc6 {[%clk 0:02:47.8]} 11. h4 {[%clk
0:00:40.2]} 11... b4 {[%clk 0:02:40.4]} 12. Nd5 {[%clk 0:00:39.6]} 12... Nxd5
{[%clk 0:02:40.1]} 13. Bxg7 {[%clk 0:00:38.5]} 13... Kxg7 {[%clk 0:02:35.2]} 14.
exd5 {[%clk 0:00:38.7]} 14... Ne5 {[%clk 0:02:35.3]} 15. h5 {[%clk 0:00:38.6]}
15... g5 {[%clk 0:02:24.1]} 16. Qxg5+ {[%clk 0:00:38]} 16... Kh8 {[%clk
0:02:24.3]} 17. Qd2 {[%clk 0:00:35.9]} 17... a5 {[%clk 0:02:24.2]} 18. Nd4
{[%clk 0:00:35.5]} 18... Bd7 {[%clk 0:02:23.7]} 19. f4 {[%clk 0:00:29.4]} 19...
Ng4 {[%clk 0:02:21.9]} 20. Bd3 {[%clk 0:00:27.4]} 20... Qb6 {[%clk 0:02:18.6]}
21. Nf5 {[%clk 0:00:22.5]} 21... Qc5 {[%clk 0:02:09.4]} 22. O-O-O {[%clk
0:00:18.9]} 22... a4 {[%clk 0:02:04.4]} 23. Kb1 {[%clk 0:00:18.8]} 23... b3
{[%clk 0:02:00]} 24. cxb3 {[%clk 0:00:19]} 24... axb3 {[%clk 0:02:00.3]} 25. a3
{[%clk 0:00:19.9]} 25... Bxf5 {[%clk 0:01:38.5]} 26. Bxf5 {[%clk 0:00:18.8]}
26... Ne3 {[%clk 0:01:36.9]} 27. Rc1 {[%clk 0:00:19.2]} 27... Qxd5 {[%clk
0:01:36.6]} 28. Qxd5 {[%clk 0:00:19.5]} 28... Nxd5 {[%clk 0:01:36.1]} 29. Be4
{[%clk 0:00:20.4]} 29... Ra5 {[%clk 0:01:36.5]} 30. Rhd1 {[%clk 0:00:19.8]}
30... Nf6 {[%clk 0:01:36.3]} 31. Bf3 {[%clk 0:00:18.5]} 31... d5 {[%clk
0:01:36]} 32. Rc3 {[%clk 0:00:18]} 32... Rb8 {[%clk 0:01:35.7]} 33. Rdc1 {[%clk
0:00:17.1]} 33... Kg7 {[%clk 0:01:34.6]} 34. g4 {[%clk 0:00:16.6]} 34... h6
{[%clk 0:01:19.2]} 35. g5 {[%clk 0:00:16.1]} 35... hxg5 {[%clk 0:01:19.6]} 36.
fxg5 {[%clk 0:00:16.3]} 36... Ne4 {[%clk 0:01:20.5]} 37. Bxe4 {[%clk 0:00:16.4]}
37... dxe4 {[%clk 0:01:21.4]} 38. h6+ {[%clk 0:00:15.9]} 38... Kg6 {[%clk
0:01:21.8]} 39. Rc5 {[%clk 0:00:15]} 39... Rxc5 {[%clk 0:01:19.5]} 40. Rxc5
{[%clk 0:00:15.6]} 40... Rd8 {[%clk 0:01:19.6]} 41. Kc1 {[%clk 0:00:15.6]} 41...
f6 {[%clk 0:01:14.6]} 42. gxf6 {[%clk 0:00:15.4]} 42... exf6 {[%clk 0:01:15.5]}
43. Rb5 {[%clk 0:00:15.7]} 43... Rd3 {[%clk 0:01:14.9]} 44. Rb6 {[%clk
0:00:12.1]} 44... Kf5 {[%clk 0:01:03.3]} 45. h7 {[%clk 0:00:12]} 45... Rh3
{[%clk 0:01:03.1]} 46. Kd2 {[%clk 0:00:07.9]} 46... Rxh7 {[%clk 0:00:48.6]} 47.
Rxb3 {[%clk 0:00:07.8]} 47... Rh2+ {[%clk 0:00:49]} 48. Ke1 {[%clk 0:00:05.8]}
48... Kf4 {[%clk 0:00:49.5]} 49. Rb5 {[%clk 0:00:04.6]} 49... Ke3 {[%clk
0:00:46]} 50. Rb3+ {[%clk 0:00:04.4]} 50... Kd4 {[%clk 0:00:44.8]} 51. Rb5
{[%clk 0:00:04.9]} 51... e3 {[%clk 0:00:27.7]} 52. a4 {[%clk 0:00:04]} 52... Kd3
{[%clk 0:00:26.5]} 53. Rb3+ {[%clk 0:00:03.8]} 53... Ke4 {[%clk 0:00:26.1]} 54.
Rb5 {[%clk 0:00:04]} 54... f5 {[%clk 0:00:25.7]} 55. a5 {[%clk 0:00:04.5]} 55...
f4 {[%clk 0:00:26]} 56. a6 {[%clk 0:00:02.9]} 56... f3 {[%clk 0:00:26.2]} 57. a7
{[%clk 0:00:03.1]} 57... Rh1# {[%clk 0:00:26.3]} 0-1

[Event "*** Titled Tuesday Blitz"]
[Site "Chess.com"]
[Date "2020.10.27"]
[Round "3"]
[White "anon569"]
[Black "PotapovaM"]
[Result "1/2-1/2"]
[WhiteElo "2264"]
[BlackElo "2574"]
[TimeControl "180+1"]
[EndTime "10:28:54 PDT"]
[Termination "Game drawn by agreement"]

1. e4 {[%clk 0:03:00.9]} 1... c5 {[%clk 0:02:23.2]} 2. Nf3 {[%clk 0:03:00]} 2...
d6 {[%clk 0:02:23]} 3. d4 {[%clk 0:02:58.6]} 3... cxd4 {[%clk 0:02:23.9]} 4.
Nxd4 {[%clk 0:02:56.8]} 4... Nf6 {[%clk 0:02:23.5]} 5. Nc3 {[%clk 0:02:55.7]}
5... a6 {[%clk 0:02:24.1]} 6. Bg5 {[%clk 0:02:54.3]} 6... e6 {[%clk 0:02:24.4]}
7. f4 {[%clk 0:02:52.8]} 7... h6 {[%clk 0:02:24.5]} 8. Bh4 {[%clk 0:02:52.1]}
8... Qb6 {[%clk 0:02:24.7]} 9. a3 {[%clk 0:02:51.2]} 9... Be7 {[%clk 0:02:24.5]}
10. Bf2 {[%clk 0:02:49.9]} 10... Qc7 {[%clk 0:02:24.9]} 11. Qf3 {[%clk
0:02:47.9]} 11... b5 {[%clk 0:02:25.4]} 12. g4 {[%clk 0:02:44.8]} 12... Bb7
{[%clk 0:02:25]} 13. g5 {[%clk 0:02:44]} 13... hxg5 {[%clk 0:01:30.8]} 14. fxg5
{[%clk 0:02:42.8]} 14... Nfd7 {[%clk 0:01:31.3]} 15. g6 {[%clk 0:02:42.4]} 15...
O-O {[%clk 0:01:30.9]} 16. Qh3 {[%clk 0:02:06.5]} 16... Nf6 {[%clk 0:01:23]} 17.
Bh4 {[%clk 0:01:43.3]} 17... fxg6 {[%clk 0:01:02.8]} 18. Nxe6 {[%clk 0:01:40.9]}
18... Qb6 {[%clk 0:00:48.1]} 19. Nxf8 {[%clk 0:01:38.1]} 19... Kxf8 {[%clk
0:00:48.4]} 20. Bf2 {[%clk 0:01:29.5]} 20... Qc7 {[%clk 0:00:42.9]} 21. Bd3
{[%clk 0:00:59.3]} 21... Nc6 {[%clk 0:00:41.3]} 22. Rf1 {[%clk 0:00:46.2]} 22...
Ne5 {[%clk 0:00:40.4]} 23. Bd4 {[%clk 0:00:34.6]} 23... Kf7 {[%clk 0:00:20.6]}
24. Nd5 {[%clk 0:00:24.1]} 24... Nxd3+ {[%clk 0:00:10.3]} 25. Qxd3 {[%clk
0:00:15.1]} 25... Bxd5 {[%clk 0:00:10.3]} 26. exd5 {[%clk 0:00:13.1]} 26... Re8
{[%clk 0:00:06.1]} 27. O-O-O {[%clk 0:00:09.9]} 27... a5 {[%clk 0:00:05.6]} 28.
Rg1 {[%clk 0:00:10]} 28... g5 {[%clk 0:00:04.7]} 29. Rxg5 {[%clk 0:00:08.8]}
29... Kf8 {[%clk 0:00:05.1]} 30. Qg6 {[%clk 0:00:08.1]} 30... Bd8 {[%clk
0:00:05.3]} 31. Rf1 {[%clk 0:00:06.9]} 31... b4 {[%clk 0:00:05.1]} 32. Bxf6
{[%clk 0:00:06.9]} 32... Bxf6 {[%clk 0:00:05.3]} 33. Rxf6+ {[%clk 0:00:06.9]}
33... gxf6 {[%clk 0:00:05.1]} 34. Qh6+ {[%clk 0:00:07.5]} 34... Ke7 {[%clk
0:00:02.6]} 35. Rg7+ {[%clk 0:00:08.1]} 35... Kd8 {[%clk 0:00:03]} 36. Rxc7
{[%clk 0:00:08.7]} 36... Kxc7 {[%clk 0:00:03.9]} 37. Qxf6 {[%clk 0:00:08.8]}
37... Re2 {[%clk 0:00:03.8]} 38. Qf7+ {[%clk 0:00:08.2]} 38... Kb6 {[%clk
0:00:03.5]} 39. h4 {[%clk 0:00:08]} 39... Rh2 {[%clk 0:00:03.4]} 40. h5 {[%clk
0:00:08]} 40... Rh1+ {[%clk 0:00:03.2]} 41. Kd2 {[%clk 0:00:07.6]} 41... Rh2+
{[%clk 0:00:04.1]} 42. Kd3 {[%clk 0:00:08]} 42... bxa3 {[%clk 0:00:05]} 43. bxa3
{[%clk 0:00:07.2]} 43... a4 {[%clk 0:00:05.4]} 44. Qf2+ {[%clk 0:00:06.2]} 44...
Rxf2 {[%clk 0:00:04.8]} 45. Ke3 {[%clk 0:00:06.5]} 45... Rh2 {[%clk 0:00:05.1]}
46. Kf4 {[%clk 0:00:06.5]} 46... Rxh5 {[%clk 0:00:05.6]} 47. Ke4 {[%clk
0:00:04.1]} 1/2-1/2